fUSD/lending_fUSD_20260106
["ID","MTS","AMOUNT","RATE_DAILY","PERIOD"]
[400521738,1767694268402,-300.0,0.00038898,2]
[400521739,1767694268411,-300.0,0.00038898,2]
[400521740,1767694268420,-303.6046697,0.00038898,2]
[400521741,1767694268430,-578.43661521,0.00038898,2]
[400521742,1767694268439,-635.78473007,0.00038898,2]
[400521743,1767694268449,-304.86824505,0.00038898,2]
[400521744,1767694268458,-300.0,0.00038898,2]
[400521745,1767694268470,-455.124797,0.00038898,2]
[400521746,1767694268479,-1073.62216029,0.00038898,2]
[400521747,1767694268489,-368.50050943,0.00038898,2]
[400521748,1767694268498,-300.0,0.00038898,2]
[400521749,1767694268508,-300.0,0.00038898,2]
[400521750,1767694268518,-303.60466968,0.00038898,2]
[400521751,1767694268528,-300.0,0.00038898,2]
[400521752,1767694268538,-750.89704409,0.00038898,2]
[400521753,1767694268548,-635.78473007,0.00038898,2]
[400521754,1767694268559,-304.86824505,0.00038898,2]
[400521755,1767694268570,-300.0,0.00038898,2]
[400521756,1767694268580,-455.124797,0.00038898,2]
[400521757,1767694268589,-1073.62216031,0.00038898,2]
[400521758,1767694268600,-368.50050943,0.00038898,2]
[400521759,1767694268609,-300.0,0.00038898,2]
[400521760,1767694268620,-300.03365513,0.00038898,2]
[400521761,1767694268630,-300.14090577,0.00038898,2]
[400521762,1767694268640,-304.09080379,0.00038898,2]
[400521763,1767694268650,-579.86797827,0.00038898,2]
[400521764,1767694268660,-635.78473007,0.00038898,2]
[400521765,1767694268670,-305.23791276,0.00038898,2]
[400521766,1767694268681,-300.03758853,0.00038898,2]
[400521767,1767694268694,-457.91600368,0.00038898,2]
[400521768,1767694268704,-1073.62216029,0.00038898,2]
[400521769,1767694268714,-368.50050943,0.00038898,2]
[400521770,1767694268724,-300.0,0.00038898,2]
[400521771,1767694268733,-345.45017726,0.00038898,2]
[400521772,1767694268742,-300.0,0.00038898,2]
[400521773,1767694268752,-303.69339385,0.00038898,2]
[400521774,1767694268761,-578.43661522,0.00038898,2]
[400521775,1767694268771,-635.78473007,0.00038898,2]
[400521776,1767694268780,-304.86824505,0.00038898,2]
[400521777,1767694268790,-300.0,0.00038898,2]
[400521778,1767694268799,-455.124797,0.00038898,2]
[400521779,1767694268809,-1073.62216031,0.00038898,2]
[400521780,1767694268818,-368.50050943,0.00038898,2]
[400521781,1767694268828,-300.0,0.00038898,2]
[400521782,1767694268837,-585.21027615,0.00038898,2]
[400521783,1767694268847,-300.0,0.00038898,2]
[400521784,1767694268856,-300.0,0.00038898,2]
[400521785,1767694268866,-300.0,0.00038898,2]
[400521786,1767694268876,-300.0,0.00038898,2]
[400521787,1767694268885,-300.0,0.00038898,2]
[400521788,1767694268896,-303.69339385,0.00038898,2]
[400521789,1767694268906,-300.0,0.00038898,2]
[400521790,1767694268916,-300.0,0.00038898,2]
[400521791,1767694268926,-578.43661522,0.00038898,2]
[400521792,1767694268936,-300.0,0.00038898,2]
[400521793,1767694268946,-300.0,0.00038898,2]
[400521794,1767694268955,-300.0,0.00038898,2]
[400521795,1767694268966,-301.47998405,0.00038898,2]
[400521796,1767694268975,-300.00000002,0.00038898,2]
[400521797,1767694268985,-635.78473007,0.00038898,2]
[400521798,1767694268995,-304.86824505,0.00038898,2]
[400521799,1767694269004,-300.85104277,0.00038898,2]
[400521800,1767694269014,-300.0,0.00038898,2]
[400521801,1767694269023,-301.64768518,0.00038898,2]
[400521802,1767694269033,-455.124797,0.00038898,2]
[400521803,1767694269043,-1073.62216029,0.00038898,2]
[400521804,1767694269053,-368.50050943,0.00038898,2]
[400521805,1767694269062,-300.0,0.00038898,2]
[400521806,1767694269073,-300.0,0.00038898,2]
[400521807,1767694269084,-303.69339385,0.00038898,2]
[400521808,1767694269093,-578.43661521,0.00038898,2]
[400521809,1767694269103,-635.78473007,0.00038898,2]
[400521810,1767694269113,-304.86824505,0.00038898,2]
[400521811,1767694269123,-385.68905791,0.00038898,2]
[400521812,1767694269132,-455.124797,0.00038898,2]
[400521813,1767694269141,-1073.62216031,0.00038898,2]
[400521814,1767694269151,-368.50050943,0.00038898,2]
[400521815,1767694269160,-300.0,0.00038898,2]
[400521816,1767694269169,-300.0,0.00038898,2]
[400521817,1767694269179,-303.69339385,0.00038898,2]
[400521818,1767694269188,-578.43661521,0.00038898,2]
[400521819,1767694269199,-635.78473007,0.00038898,2]
[400521820,1767694269209,-304.86824505,0.00038898,2]
[400521821,1767694269217,-455.124797,0.00038898,2]
[400521822,1767694269227,-301.27845101,0.00038898,2]
[400521823,1767694269236,-301.98466873,0.00038898,2]
[400521824,1767694269245,-1073.62216029,0.00038898,2]
[400521825,1767694269254,-368.50050943,0.00038898,2]
[400521826,1767694269263,-300.0,0.00038898,2]
[400521827,1767694269273,-300.0,0.00038898,2]
[400521828,1767694269282,-303.69339385,0.00038898,2]
[400521829,1767694269292,-578.43661521,0.00038898,2]
[400521830,1767694269301,-635.78473007,0.00038898,2]
[400521831,1767694269311,-304.86824505,0.00038898,2]
[400521832,1767694269320,-455.124797,0.00038898,2]
[400521833,1767694269330,-302.70520284,0.00038898,2]
[400521834,1767694269339,-1073.62216031,0.00038898,2]
[400521835,1767694269349,-368.50050943,0.00038898,2]
[400521836,1767694269358,-300.0,0.00038898,2]
[400521837,1767694269368,-300.0,0.00038898,2]
[400521838,1767694269377,-303.69339385,0.00038898,2]
[400521839,1767694269387,-578.43661521,0.00038898,2]
[400521840,1767694269397,-635.78473007,0.00038898,2]
[400521841,1767694269407,-304.86824505,0.00038898,2]
[400521842,1767694269416,-455.124797,0.00038898,2]
[400521843,1767694269426,-1073.62216029,0.00038898,2]
[400521844,1767694269435,-368.50050943,0.00038898,2]
[400521845,1767694269445,-300.0,0.00038898,2]
[400521846,1767694269455,-300.0,0.00038898,2]
[400521847,1767694269465,-303.69339385,0.00038898,2]
[400521848,1767694269475,-578.43661521,0.00038898,2]
[400521849,1767694269484,-635.78473007,0.00038898,2]
[400521850,1767694269493,-304.86824505,0.00038898,2]
[400521851,1767694269503,-455.124797,0.00038898,2]
[400521852,1767694269512,-1073.62216031,0.00038898,2]
[400521853,1767694269521,-300.0,0.00038898,2]
[400521854,1767694269531,-368.50050943,0.00038898,2]
[400521855,1767694269540,-300.0,0.00038898,2]
[400521856,1767694269551,-300.0,0.00038898,2]
[400521857,1767694269560,-303.69339385,0.00038898,2]
[400521858,1767694269570,-578.43661521,0.00038898,2]
[400521859,1767694269581,-635.78473007,0.00038898,2]
[400521860,1767694269591,-304.86824505,0.00038898,2]
[400521861,1767694269600,-455.124797,0.00038898,2]
[400521862,1767694269609,-1073.62216029,0.00038898,2]
[400521863,1767694269619,-300.0,0.00038898,2]
[400521864,1767694269628,-368.50050943,0.00038898,2]
[400521865,1767694269638,-300.0,0.00038898,2]
[400521866,1767694269647,-300.0,0.00038898,2]
[400521867,1767694269656,-303.69339385,0.00038898,2]
[400521868,1767694269666,-578.43661521,0.00038898,2]
[400521869,1767694269676,-635.78473007,0.00038898,2]
[400521870,1767694269686,-304.86824505,0.00038898,2]
[400521871,1767694269695,-455.124797,0.00038898,2]
[400521872,1767694269704,-1073.62216031,0.00038898,2]
[400521873,1767694269714,-398.64,0.00038898,2]
[400521874,1767694269724,-300.0,0.00038898,2]
[400521875,1767694269733,-368.50050943,0.00038898,2]
[400521876,1767694269742,-300.0,0.00038898,2]
[400521877,1767694269751,-545.53761092,0.00038898,2]
[400521878,1767694269760,-303.69339385,0.00038898,2]
[400521879,1767694269770,-578.43661521,0.00038898,2]
[400521880,1767694269780,-635.78473007,0.00038898,2]
[400521881,1767694269791,-304.86824505,0.00038898,2]
[400521882,1767694269800,-455.124797,0.00038898,2]
[400521883,1767694269810,-1073.62216029,0.00038898,2]
[400521884,1767694269819,-300.0,0.00038898,2]
[400521885,1767694269829,-368.50050943,0.00038898,2]
[400521886,1767694269839,-300.0,0.00038898,2]
[400521887,1767694269849,-303.70531614,0.00038898,2]
[400521888,1767694269859,-578.43661521,0.00038898,2]
[400521889,1767694269869,-635.78473007,0.00038898,2]
[400521890,1767694269878,-304.86824505,0.00038898,2]
[400521891,1767694269888,-455.124797,0.00038898,2]
[400521892,1767694269899,-1073.62216031,0.00038898,2]
[400521893,1767694269908,-300.0,0.00038898,2]
[400521894,1767694269918,-368.50050943,0.00038898,2]
[400521895,1767694269927,-300.0,0.00038898,2]
[400521896,1767694269936,-303.68147157,0.00038898,2]
[400521897,1767694269946,-578.43661521,0.00038898,2]
[400521898,1767694269955,-635.78473007,0.00038898,2]
[400521899,1767694269966,-304.86824505,0.00038898,2]
[400521900,1767694269975,-455.124797,0.00038898,2]
[400521901,1767694269987,-1073.62216029,0.00038898,2]
[400521902,1767694269997,-300.0,0.00038898,2]
[400521903,1767694270006,-368.50050943,0.00038898,2]
[400521904,1767694270015,-407.15708421,0.00038898,2]
[400521905,1767694270026,-303.69339385,0.00038898,2]
[400521906,1767694270036,-578.43661521,0.00038898,2]
[400521907,1767694270045,-635.78473007,0.00038898,2]
[400521908,1767694270055,-403.93994695,0.00038898,2]
[400521909,1767694270065,-455.124797,0.00038898,2]
[400521910,1767694270074,-1073.62216031,0.00038898,2]
[400521911,1767694270084,-300.0,0.00038898,2]
[400521912,1767694270093,-300.0,0.00038898,2]
[400521913,1767694270103,-368.50050943,0.00038898,2]
[400521914,1767694270112,-3080.24,0.00038899,14]
[400521915,1767694270122,-3080.24,0.00038899,14]
[400521916,1767694270131,-538.23,0.00038899,120]
[400521917,1767694270140,-538.23,0.00038899,120]
[400521918,1767694270150,-538.23,0.00038899,120]
[400521919,1767694270159,-538.23,0.00038899,120]
[400521920,1767694270169,-538.45831027,0.00038899,120]
[400521921,1767694270178,-333.17163053,0.000389,120]
[400521922,1767694270188,-18797.34400496,0.000389,30]
[400521923,1767694270200,-365.0,0.000389,2]
[400521924,1767694270209,-365.0,0.000389,2]
[400521925,1767694270220,-365.0,0.000389,2]
[400521926,1767694270229,-365.0,0.000389,2]
[400521927,1767694270238,-365.0,0.000389,2]
[400521928,1767694270249,-365.0,0.000389,2]
[400521929,1767694270258,-365.0,0.000389,2]
[400521930,1767694270268,-365.0,0.000389,2]
[400521931,1767694270278,-365.0,0.000389,2]
[400521932,1767694270289,-365.0,0.000389,2]
[400521933,1767694270298,-365.0,0.000389,2]
[400521934,1767694270307,-365.0,0.000389,2]
[400521935,1767694270317,-365.0,0.000389,2]
[400521936,1767694270326,-363.51,0.000389,2]
[400521937,1767694270335,-365.0,0.000389,2]
[400521938,1767694270344,-365.0,0.000389,2]
[400521939,1767694270355,-365.0,0.000389,2]
[400521940,1767694270364,-365.0,0.000389,2]
[400521941,1767694270373,-365.0,0.000389,2]
[400521942,1767694270382,-365.0,0.000389,2]
[400521943,1767694270391,-365.0,0.000389,2]
[400521944,1767694270400,-365.0,0.000389,2]
[400521945,1767694270409,-365.0,0.000389,2]
[400521946,1767694270420,-365.0,0.000389,2]
[400521947,1767694270429,-365.0,0.000389,2]
[400521948,1767694270438,-365.0,0.000389,2]
[400521949,1767694270447,-365.0,0.000389,2]
[400521950,1767694270455,-365.0,0.000389,2]
[400521951,1767694270465,-365.0,0.000389,2]
[400521952,1767694270474,-365.0,0.000389,2]
[400521953,1767694270483,-478.72,0.000389,2]
[400521954,1767694270492,-229064.31499357,0.000389,31]
[400521955,1767694270519,-75433.44150804,0.000389,31]
[400521956,1767694270528,-577.7122604,0.000389,2]
[400521957,1767694270537,-530.0,0.00038904,120]
[400521958,1767694270546,-1000.0,0.00038904,120]
[400521959,1767694270555,-530.0,0.00038959,120]
[400521960,1767694270564,-151.0,0.00038999,120]
[400521961,1767694270574,-151.0,0.00038999,30]
[400521962,1767694270583,-180.654415,0.00038999,120]
[400521963,1767694270592,-160.518477,0.00038999,120]
[400521964,1767694270601,-249.618168,0.00038999,120]
[400521965,1767694270610,-151.689311,0.00038999,120]
[400521966,1767694270619,-151.0,0.00038999,120]
[400521967,1767694270628,-159.740768,0.00038999,120]
[400521968,1767694270638,-159.192274,0.00038999,120]
[400521969,1767694270647,-159.192274,0.00038999,120]
[400521970,1767694270656,-159.192274,0.00038999,120]
[400521971,1767694270666,-159.192274,0.00038999,120]
[400521972,1767694270675,-3080.24,0.00038999,14]
[400521973,1767694270685,-3080.24,0.00038999,14]
[400521974,1767694270695,-3080.24,0.00038999,14]
[400521975,1767694270703,-3080.24,0.00038999,14]
[400521976,1767694270714,-3080.24,0.00038999,14]
[400521977,1767694270723,-3080.24,0.00038999,14]
[400521978,1767694270732,-3080.24,0.00038999,14]
[400521979,1767694270741,-3080.24,0.00038999,14]
[400521980,1767694270750,-3080.45791312,0.00038999,14]
[400521981,1767694270760,-30619.12888733,0.00039,2]
[400521982,1767694270770,-226.0057044,0.00039,120]
[400521983,1767694270779,-2000.0,0.00039,30]
[400521984,1767694270788,-2041.0,0.00039,30]
[400521985,1767694270798,-210644.35525751,0.00039,120]
[400521986,1767694270809,-373.438,0.00039,120]
[400521987,1767694270878,-12327.340356,0.00039,120]
[400521988,1767694270890,-26821.57099171,0.00039,120]
[400521989,1767694270902,-225741.09232584,0.00039,120]
[400521990,1767694271633,10000.0,0.00025,14]
[400521991,1767694284785,192.0,0.00025,2]
[400521992,1767694347792,150.0,0.00018,7]
[400521993,1767694384743,506.0,0.00022,2]
[400521994,1767694485520,151.0,0.0001924,2]
[400521996,1767694502229,151.0,0.00019235,2]
[400521997,1767694519461,151.0,0.00019127,2]
[400521998,1767694535862,150.0,0.000181,7]
[400521999,1767694536475,151.0,0.00019125,2]
[400522000,1767694553407,151.0,0.00019199,2]
[400522001,1767694569629,151.0,0.00019136,2]
[400522002,1767694586556,151.0,0.00019467,2]
[400522003,1767694595040,506.0,0.00022,2]
[400522004,1767694603530,151.0,0.00019364,2]
[400522005,1767694620016,151.0,0.00019364,2]
[400522006,1767694631526,3170.78,0.00017658,2]
[400522007,1767694631728,3170.78,0.00018587,2]
[400522008,1767694632132,3170.78,0.00019517,2]
[400522009,1767694632335,3170.78,0.00020446,2]
[400522010,1767694632537,3170.78,0.00021375,2]
[400522011,1767694632744,3170.78,0.00022305,2]
[400522012,1767694632938,3170.78,0.00023234,2]
[400522013,1767694633575,3170.78,0.00024164,2]
[400522014,1767694636994,151.0,0.00019434,2]
[400522015,1767694645326,200.0,0.00022269,2]
[400522016,1767694646026,207.4,0.00023638,2]
[400522017,1767694723325,173.03,0.000181,7]
[400522018,1767694899546,151.0,0.00018196,2]
[400522019,1767694916640,151.0,0.00018193,2]
[400522020,1767694926172,200.0,0.00021515,2]
[400522021,1767694926751,333.55872014,0.00021515,2]
[400522022,1767694933611,151.0,0.00018248,2]
[400522023,1767694949812,151.0,0.00018198,2]
[400522026,1767694955471,506.0,0.00022,2]
[400522030,1767694967228,151.0,0.00018238,2]
[400522031,1767694983795,151.0,0.00018254,2]
[400522032,1767695000298,151.0,0.00018304,2]
[400522033,1767695016953,151.0,0.00018248,2]
[400522034,1767695107672,432759.4711254,0.00018,2]
[400522035,1767695219101,-151.25904371,0.000177,2]
[400522037,1767695291848,-442.01358389,0.0001439,2]
[400522038,1767695295149,-164.67,0.0001439,2]
[400522040,1767695305212,-689.01438501,0.0001439,2]
[400522041,1767695305238,-534.14261499,0.00015,2]
[400522042,1767695306880,-1200.0,0.00015,2]
[400522045,1767695309093,-259.0,0.00015,2]
[400522046,1767695311854,-776.843,0.00015,2]
[400522047,1767695313540,-250.0,0.00015,2]
[400522048,1767695314595,22266.24703026,0.0001,2]
[400522049,1767695410237,-159.92121385,0.00014999,2]
[400522065,1767695431789,-140.07878615,0.00014999,2]
[400522066,1767695431798,-837.29673717,0.00014999,2]
[400522067,1767695431836,-362.70326283,0.00014999,2]
[400522068,1767695431845,-1488.29673717,0.00015,2]
[400522069,1767695431857,-666.0,0.00015,2]
[400522070,1767695434442,-179.99694184,0.00015,2]
[400522071,1767695434452,-4382.0223983,0.00015,2]
[400522072,1767695434463,-811.88170465,0.00015,2]
[400522073,1767695434474,-17767.69253288,0.00015,2]
[400522074,1767695434486,-8653.64755666,0.00016,4]
[400522075,1767695434495,-628.30339857,0.000177,2]
[400522076,1767695434510,-160.47,0.0001771,2]
[400522077,1767695434520,-159.20166864,0.000179,2]
[400522078,1767695434530,-195.81619897,0.000179,2]
[400522079,1767695434543,-500.0,0.00017973,2]
[400522080,1767695434553,-640.17689625,0.00017973,2]
[400522081,1767695434563,-464.6041227,0.00017973,2]
[400522082,1767695434573,-150.0,0.00017973,2]
[400522083,1767695434583,-596.96933578,0.00017974,2]
[400522084,1767695434592,-211.7285009,0.00017974,2]
[400522085,1767695434603,-495.92359916,0.00017974,2]
[400522086,1767695434612,-8296.60693334,0.00017974,2]
[400522087,1767695434623,-299.99271757,0.0001799,2]
[400522088,1767695434632,-299.99271757,0.0001799,2]
[400522089,1767695434642,-1467.66845712,0.00017999,5]
[400522090,1767695434651,-323.23631266,0.00017999,2]
[400522091,1767695434661,-224.87163099,0.00017999,2]
[400522092,1767695434671,-500.0,0.00017999,2]
[400522093,1767695434681,-500.0,0.00017999,2]
[400522094,1767695434690,-500.0,0.00017999,2]
[400522095,1767695434699,-500.0,0.00017999,2]
[400522096,1767695434709,-500.0,0.00017999,2]
[400522097,1767695434719,-500.0,0.00017999,2]
[400522098,1767695434728,-422.07234246,0.00017999,2]
[400522099,1767695434737,-500.0,0.00017999,2]
[400522100,1767695434746,-500.0,0.00017999,2]
[400522101,1767695434755,-77991.87964652,0.00018,2]
[400522102,1767695434767,-6742.98864931,0.00018,2]
[400522103,1767695434782,-1091.33504491,0.00018,2]
[400522104,1767695437812,-628.73244732,0.00018,2]
[400522105,1767695437825,-2409.62510599,0.00018,2]
[400522106,1767695437867,-2932694.64600024,0.00018,2]
[400522107,1767695437879,-123860.76699946,0.00018,2]
[400522108,1767695437889,-1676860.61698396,0.00018,2]
[400522109,1767695437898,-8390.81678442,0.00018074,2]
[400522110,1767695437908,-62709.21800607,0.00019,2]
[400522111,1767695437918,-506.0,0.000196,2]
[400522113,1767695437927,-3888.17635242,0.0002,3]
[400522115,1767695437936,-8390.81678442,0.00020388,2]
[400522117,1767695437946,-195.81619894,0.00022372,2]
[400522119,1767695437955,-8390.81678442,0.00022702,2]
[400522120,1767695437965,-400.37,0.00022797,2]
[400522122,1767695437974,-177.52,0.000228,7]
[400522124,1767695437986,-21904.92,0.000228,2]
[400522126,1767695437996,-596.96933574,0.00022998,2]
[400522128,1767695438006,-150.08335445,0.000234,2]
[400522130,1767695438015,-159.20166864,0.00023852,2]
[400522131,1767695438025,-200.0,0.00023854,2]
[400522133,1767695438035,-506.0,0.00024633,6]
[400522135,1767695438047,-304437.627838,0.000248,3]
[400522136,1767695438057,-4381.16028057,0.00024993,2]
[400522138,1767695438067,-8390.81678442,0.00025016,2]
[400522140,1767695438078,-3170.78,0.00025093,2]
[400522142,1767695438087,-3170.78,0.00026022,2]
[400522143,1767695438097,-1000.0,0.00026212,2]
[400522145,1767695438106,-4381.16028056,0.00026538,2]
[400522147,1767695438116,-195.81619894,0.00026844,2]
[400522149,1767695438126,-3170.78,0.00026952,2]
[400522150,1767695438135,-942.56574764,0.00027,2]
[400522152,1767695438145,-180.501,0.000272,15]
[400522154,1767695438155,-1329.844,0.000272,15]
[400522156,1767695438164,-189.650624,0.00027279,7]
[400522157,1767695438174,-189.650624,0.00027279,7]
[400522159,1767695438184,-189.650624,0.00027279,7]
[400522161,1767695438194,-189.650624,0.00027279,7]
[400522163,1767695438203,-8390.81678442,0.0002733,2]
[400522164,1767695438213,-151.0,0.00027397,7]
[400522166,1767695438223,-1500.0,0.00027577,120]
[400522168,1767695438232,-177.52,0.000276,7]
[400522170,1767695438241,-21904.92,0.000276,2]
[400522171,1767695438251,-3170.78,0.00027881,2]
[400522173,1767695438261,-1000.0,0.00028019,2]
[400522175,1767695438272,-596.96933574,0.00028023,2]
[400522177,1767695438282,-4381.16028056,0.00028083,2]
[400522178,1767695438291,-177.05,0.00028179,2]
[400522180,1767695438301,-150.08335445,0.00028422,2]
[400522182,1767695438311,-297.34071,0.000285,120]
[400522184,1767695438320,-3170.78,0.0002881,2]
[400522185,1767695438331,-1000.0,0.0002907,2]
[400522187,1767695438340,-1000.0,0.00029489,2]
[400522189,1767695438350,-2000.0,0.000296,2]
[400522191,1767695438359,-4381.16028056,0.00029629,2]
[400522192,1767695438369,-8390.81678442,0.00029644,2]
[400522194,1767695438379,-506.0,0.00029667,11]
[400522196,1767695438389,-3170.78,0.0002974,2]
[400522198,1767695438399,-159.20166864,0.00029805,2]
[400522200,1767695438409,-1000.0,0.0003012,2]
[400522202,1767695438418,-417.18292408,0.00030136,30]
[400522204,1767695438428,-155.91661298,0.000302,120]
[400522206,1767695438438,-495.92359914,0.00030535,2]
[400522208,1767695438448,-8296.60693333,0.00030535,2]
[400522209,1767695438457,-3170.78,0.00030669,2]
[400522211,1767695438467,-177.52,0.00031,7]
[400522213,1767695438476,-21904.92,0.00031,2]
[400522215,1767695438486,-157.45973788,0.00031,120]
[400522217,1767695438495,-1000.0,0.00031171,2]
[400522219,1767695438505,-4381.16028056,0.00031174,2]
[400522220,1767695438515,-195.81619894,0.00031317,2]
[400522222,1767695438525,-687.60103649,0.000315,120]
[400522224,1767695438537,-151.0,0.00031507,31]
[400522226,1767695438547,-151.0,0.00031507,31]
[400522227,1767695438557,-151.0,0.00031507,31]
[400522229,1767695438566,-151.0,0.00031507,31]
[400522231,1767695438577,-2393.929056,0.00031507,31]
[400522233,1767695438586,-151.0,0.00031507,31]
[400522234,1767695438595,-2393.929056,0.00031507,31]
[400522236,1767695438605,-172.214372,0.00031507,31]
[400522238,1767695438615,-151.0,0.00031507,31]
[400522240,1767695438625,-2393.929056,0.00031507,31]
[400522242,1767695438635,-2393.929056,0.00031507,31]
[400522244,1767695438644,-406.713074,0.00031507,31]
[400522246,1767695438656,-406.713074,0.00031507,31]
[400522248,1767695438665,-151.0,0.00031507,31]
[400522250,1767695438676,-406.713074,0.00031507,31]
[400522251,1767695438685,-406.713074,0.00031507,31]
[400522253,1767695438695,-247.911507,0.00031507,31]
[400522255,1767695438705,-247.911507,0.00031507,31]
[400522257,1767695438714,-247.911507,0.00031507,31]
[400522259,1767695438723,-247.911507,0.00031507,31]
[400522261,1767695438733,-161.899282,0.00031507,31]
[400522263,1767695438742,-153.640835,0.00031507,31]
[400522265,1767695438754,-151.0,0.00031507,31]
[400522266,1767695438764,-151.0,0.00031507,31]
[400522268,1767695438774,-151.0,0.00031507,31]
[400522270,1767695438783,-151.0,0.00031507,31]
[400522272,1767695438793,-151.0,0.00031507,31]
[400522274,1767695438803,-151.0,0.00031507,31]
[400522276,1767695438811,-151.0,0.00031507,31]
[400522278,1767695438821,-151.0,0.00031507,31]
[400522280,1767695438831,-151.0,0.00031507,31]
[400522281,1767695438840,-271.216334,0.00031507,31]
[400522283,1767695438849,-151.0,0.00031507,31]
[400522285,1767695438858,-151.0,0.00031507,31]
[400522287,1767695438868,-159.245567,0.00031507,31]
[400522289,1767695438878,-151.0,0.00031507,31]
[400522290,1767695438887,-159.245567,0.00031507,31]
[400522292,1767695438898,-151.0,0.00031507,31]
[400522294,1767695438908,-159.245567,0.00031507,31]
[400522296,1767695438918,-151.0,0.00031507,31]
[400522298,1767695438927,-151.0,0.00031507,31]
[400522299,1767695438936,-159.245567,0.00031507,31]
[400522301,1767695438946,-151.0,0.00031507,31]
[400522302,1767695438955,-151.0,0.00031507,31]
[400522304,1767695438964,-151.0,0.00031507,31]
[400522305,1767695438973,-258.112976,0.00031507,31]
[400522307,1767695438983,-241.804721,0.00031507,31]
[400522309,1767695438992,-151.0,0.00031507,31]
[400522311,1767695439002,-151.0,0.00031507,31]
[400522312,1767695439012,-151.0,0.00031507,31]
[400522314,1767695439022,-151.0,0.00031507,31]
[400522316,1767695439032,-151.0,0.00031507,31]
[400522317,1767695439042,-3170.78,0.00031598,2]
[400522318,1767695439051,-68.15677442,0.00031958,2]
[400522319,1767695439065,-3503.49230048,0.00031958,2]
[400522320,1767695439077,-392.85782781,0.00031958,2]
[400522321,1767695439817,-151.0,0.00031507,31]
[400522322,1767695439827,-3835.67758016,0.00031958,2]
[400522323,1767695439839,-459.94361421,0.00031958,2]
[400522324,1767695439979,-130.68868734,0.00031958,2]
[400522325,1767695439991,-307.9664599,0.00032,120]
[400522326,1767695440003,-174.7781156,0.00032,120]
[400522327,1767695440015,-1000.0,0.00032222,2]
[400522328,1767695440024,-207.3682,0.00032368,120]
[400522329,1767695440034,-479.3936844,0.00032476,2]
[400522330,1767695440051,-520.6063156,0.00032476,2]
[400522331,1767695440060,-2063.54318942,0.00032476,2]
[400522332,1767695440143,-397.46330361,0.00032476,2]
[400522333,1767695440155,-4141.19174318,0.00032476,2]
[400522339,1767695443586,-456.54834352,0.00032476,2]
[400522340,1767695443674,-16.80656044,0.00032476,2]
[400522341,1767695443690,-736.67142582,0.00032476,2]
[400522342,1767695443701,-773.11986588,0.00032476,2]
[400522343,1767695443713,-9907.61226813,0.00032476,2]
[400522344,1767695443723,-151.0,0.00032476,31]
[400522345,1767695443732,-151.0,0.00032476,31]
[400522346,1767695443742,-151.0,0.00032476,31]
[400522347,1767695443752,-151.0,0.00032476,31]
[400522348,1767695443762,-151.0,0.00032476,31]
[400522349,1767695443771,-151.0,0.00032476,31]
[400522350,1767695443780,-151.0,0.00032476,31]
[400522351,1767695443790,-151.0,0.00032476,31]
[400522352,1767695443800,-174.22026,0.00032476,31]
[400522353,1767695443810,-151.0,0.00032476,31]
[400522354,1767695443819,-151.0,0.00032476,31]
[400522355,1767695443829,-151.0,0.00032476,31]
[400522356,1767695443839,-151.0,0.00032476,31]
[400522357,1767695443848,-151.0,0.00032476,31]
[400522358,1767695443857,-151.0,0.00032476,31]